[Event "Estonian Women's Chess Championship 2021"]
[Site "Tallinn, Paul Keres Chess House, Estonia"]
[Date "2021.12.12"]
[Round "2.2"]
[White "Ivanova, Lidia"]
[Black "Haapsal, Maria Ioanna"]
[Result "1/2-1/2"]
[TimeControl "90 minutes for first 40 moves and 15 min. for the rest of the game with 30 sec."]
[WhiteFideId "4506480"]
[BlackFideId "4512286"]
[WhiteElo "1443"]
[BlackElo "1441"]

1. e4 {[%clk 01:30:58]} c5 {[%clk 01:30:51]} {[%emt 00:00:10]} 2. d3 {[%clk
01:31:21]} {[%emt 00:00:08]} e6 {[%clk 01:31:08]} {[%emt 00:00:13]} 3. f4
{[%clk 01:31:44]} {[%emt 00:00:06]} Nc6 {[%clk 01:31:09]} {[%emt 00:00:29]} 4.
Nf3 {[%clk 01:32:05]} {[%emt 00:00:09]} g6 {[%clk 01:31:14]} {[%emt 00:00:25]}
5. c3 {[%clk 01:32:19]} {[%emt 00:00:16]} Bg7 {[%clk 01:29:59]} {[%emt
00:01:44]} 6. Be2 {[%clk 01:32:35]} {[%emt 00:00:14]} Nge7 {[%clk 01:29:04]}
{[%emt 00:01:25]} 7. O-O {[%clk 01:32:48]} {[%emt 00:00:17]} O-O {[%clk
01:28:59]} {[%emt 00:00:35]} 8. Be3 {[%clk 01:33:03]} {[%emt 00:00:15]} b6
{[%clk 01:27:08]} {[%emt 00:02:20]} 9. Nbd2 {[%clk 01:30:47]} {[%emt 00:02:48]}
Bb7 {[%clk 01:25:52]} {[%emt 00:01:46]} 10. Qe1 {[%clk 01:26:44]} {[%emt
00:04:33]} d5 {[%clk 01:15:19]} {[%emt 00:11:04]} 11. e5 {[%clk 01:24:49]}
{[%emt 00:02:25]} Nf5 {[%clk 01:12:30]} {[%emt 00:03:18]} 12. Bf2 {[%clk
01:24:46]} {[%emt 00:00:33]} f6 {[%clk 01:06:15]} {[%emt 00:06:46]} 13. d4
{[%clk 01:23:49]} {[%emt 00:01:27]} cxd4 {[%clk 01:05:17]} {[%emt 00:01:28]} 14.
cxd4 {[%clk 01:19:20]} {[%emt 00:04:58]} fxe5 {[%clk 00:59:57]} {[%emt
00:05:50]} 15. fxe5 {[%clk 01:19:26]} {[%emt 00:00:24]} Rc8 {[%clk 00:59:05]}
{[%emt 00:01:21]} 16. a3 {[%clk 01:18:34]} {[%emt 00:01:23]} Qe7 {[%clk
00:54:44]} {[%emt 00:04:51]} 17. Bd3 {[%clk 01:09:41]} {[%emt 00:09:22]} Rc7
{[%clk 00:47:56]} {[%emt 00:07:18]} 18. g4 {[%clk 00:53:40]} {[%emt 00:16:31]}
Nh6 {[%clk 00:46:42]} {[%emt 00:01:44]} 19. Bh4 {[%clk 00:53:46]} {[%emt
00:00:23]} Qd7 {[%clk 00:44:04]} {[%emt 00:03:09]} 20. Qg3 {[%clk 00:53:35]}
{[%emt 00:00:40]} Nf7 {[%clk 00:35:34]} {[%emt 00:09:01]} 21. Bg5 {[%clk
00:52:49]} {[%emt 00:01:16]} Nxg5 {[%clk 00:32:27]} {[%emt 00:03:37]} 22. Nxg5
{[%clk 00:52:54]} {[%emt 00:00:24]} Nxd4 {[%clk 00:28:20]} {[%emt 00:04:38]} 23.
Qh3 {[%clk 00:45:36]} {[%emt 00:07:47]} Bxe5 {[%clk 00:23:52]} {[%emt
00:04:59]} 24. Rxf8+ {[%clk 00:44:02]} {[%emt 00:02:04]} Kxf8 {[%clk 00:24:00]}
{[%emt 00:00:22]} 25. Rf1+ {[%clk 00:43:53]} {[%emt 00:00:38]} Kg8 {[%clk
00:23:27]} {[%emt 00:01:02]} 26. Rf7 {[%clk 00:38:21]} {[%emt 00:06:02]} Qxf7
{[%clk 00:22:45]} {[%emt 00:01:13]} 27. Nxf7 {[%clk 00:38:41]} {[%emt
00:00:10]} Rxf7 {[%clk 00:23:06]} {[%emt 00:00:09]} 28. Qe3 {[%clk 00:36:56]}
{[%emt 00:02:15]} Nc6 {[%clk 00:22:21]} {[%emt 00:01:16]} 29. Nf3 {[%clk
00:27:43]} {[%emt 00:09:42]} Bxb2 {[%clk 00:17:29]} {[%emt 00:05:23]} 30. Qxe6
{[%clk 00:25:39]} {[%emt 00:02:33]} Nd8 {[%clk 00:10:31]} {[%emt 00:07:28]} 31.
Qd6 {[%clk 00:18:27]} {[%emt 00:07:41]} Rxf3 {[%clk 00:09:07]} {[%emt
00:01:55]} 32. Qxd8+ {[%clk 00:18:47]} {[%emt 00:00:10]} Kg7 {[%clk 00:08:39]}
{[%emt 00:00:59]} 33. Qe7+ {[%clk 00:15:32]} {[%emt 00:03:43]} Rf7 {[%clk
00:08:59]} {[%emt 00:00:12]} 34. Qb4 {[%clk 00:15:18]} {[%emt 00:00:44]} Be5
{[%clk 00:07:20]} {[%emt 00:02:09]} 35. h3 {[%clk 00:08:52]} {[%emt 00:06:56]}
Kg8 {[%clk 00:04:17]} {[%emt 00:03:33]} 36. Qa4 {[%clk 00:07:23]} {[%emt
00:01:59]} Bb8 {[%clk 00:04:02]} {[%emt 00:00:44]} 37. Qe8+ {[%clk 00:07:39]}
{[%emt 00:00:14]} Rf8 {[%clk 00:04:21]} {[%emt 00:00:12]} 38. Qe6+ {[%clk
00:07:07]} {[%emt 00:01:01]} Kg7 {[%clk 00:04:22]} {[%emt 00:00:29]} 39. Qe7+
{[%clk 00:05:14]} {[%emt 00:02:24]} Rf7 {[%clk 00:01:52]} {[%emt 00:02:59]} 40.
Qb4 {[%clk 00:20:30]} {[%emt 00:00:13]} Bf4 {[%clk 00:16:01]} {[%emt 00:01:22]}
41. Qd4+ {[%clk 00:18:33]} {[%emt 00:02:27]} Kg8 {[%clk 00:14:51]} {[%emt
00:01:40]} 42. Bc2 {[%clk 00:14:56]} {[%emt 00:04:08]} Bd6 {[%clk 00:12:47]}
{[%emt 00:02:35]} 43. Qa4 {[%clk 00:13:30]} {[%emt 00:01:56]} Bc5+ {[%clk
00:11:46]} {[%emt 00:01:31]} 44. Kh2 {[%clk 00:13:46]} {[%emt 00:00:14]} Bd6+
{[%clk 00:10:12]} {[%emt 00:02:03]} 45. Kg1 {[%clk 00:14:02]} {[%emt 00:00:13]}
Bc5+ {[%clk 00:09:58]} {[%emt 00:00:45]} 46. Kh2 {[%clk 00:14:25]} {[%emt
00:00:07]} a5 {[%clk 00:08:26]} {[%emt 00:02:02]} 47. Bb3 {[%clk 00:11:34]}
{[%emt 00:03:21]} Kf8 {[%clk 00:06:32]} {[%emt 00:02:25]} 48. Qb5 {[%clk
00:10:26]} {[%emt 00:01:37]} Rf2+ {[%clk 00:05:43]} {[%emt 00:01:19]} 49. Kg3
{[%clk 00:09:57]} {[%emt 00:00:59]} Rf7 {[%clk 00:05:06]} {[%emt 00:01:08]} 50.
Kh2 {[%clk 00:08:12]} {[%emt 00:02:14]} Rf2+ {[%clk 00:03:14]} {[%emt
00:02:22]} 51. Kg3 {[%clk 00:08:29]} {[%emt 00:00:13]} Rf6 {[%clk 00:03:21]}
{[%emt 00:00:21]} 52. Kh2 {[%clk 00:08:26]} {[%emt 00:00:35]} Rf2+ {[%clk
00:01:16]} {[%emt 00:02:35]} 53. Kg3 {[%clk 00:08:47]} {[%emt 00:00:09]} Rf7
{[%clk 00:00:55]} {[%emt 00:00:47]} 54. Kh2 {[%clk 00:08:45]} {[%emt 00:00:35]}
1/2-1/2

[Event "Estonian Women's Chess Championship 2021"]
[Site "Tallinn, Paul Keres Chess House, Estonia"]
[Date "2021.12.12"]
[Round "2.3"]
[White "Shadrina, Eva"]
[Black "Sinitsina, Anastassia"]
[Result "0-1"]
[TimeControl "90 minutes for first 40 moves and 15 min. for the rest of the game with 30 sec."]
[BlackTitle "WFM"]
[WhiteFideId "4510623"]
[BlackFideId "4504640"]
[WhiteElo "1472"]
[BlackElo "2159"]

1. e4 {[%clk 01:30:56]} {[%emt 00:00:03]} e5 {[%clk 01:30:28]} {[%emt
00:00:33]} 2. Nf3 {[%clk 01:31:15]} {[%emt 00:00:11]} Nc6 {[%clk 01:30:29]}
{[%emt 00:00:29]} 3. Bb5 {[%clk 01:31:35]} {[%emt 00:00:10]} a6 {[%clk
01:30:46]} {[%emt 00:00:14]} 4. Ba4 {[%clk 01:31:53]} {[%emt 00:00:12]} Nf6
{[%clk 01:31:02]} {[%emt 00:00:14]} 5. O-O {[%clk 01:32:02]} {[%emt 00:00:21]}
Nxe4 {[%clk 01:29:33]} {[%emt 00:01:59]} 6. d4 {[%clk 01:29:16]} {[%emt
00:03:16]} b5 {[%clk 01:29:46]} {[%emt 00:00:17]} 7. Bb3 {[%clk 01:29:38]}
{[%emt 00:00:08]} d5 {[%clk 01:30:03]} {[%emt 00:00:13]} 8. dxe5 {[%clk
01:26:56]} {[%emt 00:03:11]} Be6 {[%clk 01:30:23]} {[%emt 00:00:11]} 9. c3
{[%clk 01:26:43]} {[%emt 00:00:43]} Bc5 {[%clk 01:30:00]} {[%emt 00:00:53]} 10.
Nbd2 {[%clk 01:21:50]} {[%emt 00:05:23]} O-O {[%clk 01:28:19]} {[%emt
00:02:10]} 11. Bc2 {[%clk 01:19:29]} {[%emt 00:02:52]} Nxf2 {[%clk 01:26:57]}
{[%emt 00:01:53]} 12. Rxf2 {[%clk 01:17:13]} {[%emt 00:02:46]} f6 {[%clk
01:27:04]} {[%emt 00:00:23]} 13. exf6 {[%clk 01:10:07]} {[%emt 00:07:36]} Bxf2+
{[%clk 01:27:17]} {[%emt 00:00:17]} 14. Kxf2 {[%clk 01:10:25]} {[%emt
00:00:10]} Qxf6 {[%clk 01:27:43]} {[%emt 00:00:06]} 15. Nb3 {[%clk 00:40:28]}
{[%emt 00:30:27]} Ne5 {[%clk 01:23:40]} {[%emt 00:04:33]} 16. Nbd4 {[%clk
00:30:13]} {[%emt 00:10:45]} Bg4 {[%clk 01:22:02]} {[%emt 00:02:09]} 17. b4
{[%clk 00:28:58]} {[%emt 00:01:45]} Rae8 {[%clk 01:18:23]} {[%emt 00:04:09]} 18.
Bd2 {[%clk 00:24:35]} {[%emt 00:04:53]} Qb6 {[%clk 01:17:15]} {[%emt 00:01:38]}
19. Kf1 {[%clk 00:21:11]} {[%emt 00:03:53]} Nxf3 {[%clk 01:16:52]} {[%emt
00:00:55]} 20. Nxf3 {[%clk 00:20:13]} {[%emt 00:01:27]} Rxf3+ {[%clk 01:16:58]}
{[%emt 00:00:25]} 21. Qxf3 {[%clk 00:20:17]} {[%emt 00:00:26]} Bxf3 {[%clk
01:17:21]} {[%emt 00:00:08]} 22. gxf3 {[%clk 00:20:41]} {[%emt 00:00:06]} Qf6
{[%clk 01:17:28]} {[%emt 00:00:22]} 23. Bd1 {[%clk 00:20:29]} {[%emt 00:00:42]}
Qf5 {[%clk 01:17:25]} {[%emt 00:00:34]} 0-1

[Event "Estonian Women's Chess Championship 2021"]
[Site "Tallinn, Paul Keres Chess House, Estonia"]
[Date "2021.12.12"]
[Round "2.4"]
[White "Levchenko, Marina"]
[Black "Blokhin, Sofia"]
[Result "0-1"]
[TimeControl "90 minutes for first 40 moves and 15 min. for the rest of the game with 30 sec."]
[BlackTitle "WCM"]
[WhiteFideId "4508548"]
[BlackFideId "4508190"]
[WhiteElo "1367"]
[BlackElo "2032"]

1. c4 {[%clk 01:30:58]} {[%emt 00:00:02]} c5 {[%clk 01:30:55]} {[%emt
00:00:05]} 2. Nf3 {[%clk 01:31:22]} {[%emt 00:00:07]} Nf6 {[%clk 01:30:54]}
{[%emt 00:00:30]} 3. d4 {[%clk 01:31:45]} {[%emt 00:00:07]} cxd4 {[%clk
01:30:40]} {[%emt 00:00:44]} 4. Nxd4 {[%clk 01:31:41]} {[%emt 00:00:35]} Nc6
{[%clk 01:29:11]} {[%emt 00:01:59]} 5. Nc3 {[%clk 01:27:58]} {[%emt 00:04:13]}
g6 {[%clk 01:22:55]} {[%emt 00:06:45]} 6. e4 {[%clk 01:20:11]} {[%emt
00:08:18]} d6 {[%clk 01:17:10]} {[%emt 00:06:15]} 7. Be2 {[%clk 01:18:23]}
{[%emt 00:02:17]} Bg7 {[%clk 01:13:57]} {[%emt 00:03:43]} 8. Be3 {[%clk
01:16:47]} {[%emt 00:02:07]} O-O {[%clk 01:11:45]} {[%emt 00:02:40]} 9. f3
{[%clk 01:11:33]} {[%emt 00:05:46]} Bd7 {[%clk 01:07:07]} {[%emt 00:05:07]} 10.
Qd2 {[%clk 01:09:10]} {[%emt 00:02:53]} Rc8 {[%clk 01:00:13]} {[%emt 00:07:24]}
11. O-O {[%clk 01:05:16]} {[%emt 00:04:24]} Ne5 {[%clk 00:56:10]} {[%emt
00:04:33]} 12. b3 {[%clk 01:02:21]} {[%emt 00:03:26]} Re8 {[%clk 00:51:53]}
{[%emt 00:04:46]} 13. Rac1 {[%clk 00:57:56]} {[%emt 00:04:55]} h5 {[%clk
00:41:49]} {[%emt 00:10:33]} 14. h3 {[%clk 00:49:46]} {[%emt 00:08:41]} Nc6
{[%clk 00:35:24]} {[%emt 00:06:55]} 15. f4 {[%clk 00:41:37]} {[%emt 00:08:38]}
Qa5 {[%clk 00:24:24]} {[%emt 00:11:31]} 16. Bf3 {[%clk 00:28:43]} {[%emt
00:13:25]} Nxd4 {[%clk 00:22:13]} {[%emt 00:02:42]} 17. Bxd4 {[%clk 00:27:36]}
{[%emt 00:01:37]} e5 {[%clk 00:21:39]} {[%emt 00:01:03]} 18. fxe5 {[%clk
00:25:38]} {[%emt 00:02:28]} dxe5 {[%clk 00:21:56]} {[%emt 00:00:12]} 19. Be3
{[%clk 00:24:49]} {[%emt 00:01:21]} Rcd8 {[%clk 00:19:28]} {[%emt 00:02:57]} 20.
Nd5 {[%clk 00:17:59]} {[%emt 00:07:21]} Qxd2 {[%clk 00:17:35]} {[%emt
00:02:23]} 21. Bxd2 {[%clk 00:17:43]} {[%emt 00:00:46]} Nxd5 {[%clk 00:17:44]}
{[%emt 00:00:21]} 22. cxd5 {[%clk 00:17:35]} {[%emt 00:00:38]} f5 {[%clk
00:16:22]} {[%emt 00:01:52]} 23. Rc7 {[%clk 00:14:31]} {[%emt 00:03:33]} Bb5
{[%clk 00:14:32]} {[%emt 00:02:18]} 24. Rfc1 {[%clk 00:09:12]} {[%emt
00:05:51]} Bd3 {[%clk 00:09:39]} {[%emt 00:05:23]} 25. Bg5 {[%clk 00:03:49]}
{[%emt 00:05:53]} Rd6 {[%clk 00:06:14]} {[%emt 00:03:55]} 26. Be7 {[%clk
00:03:25]} {[%emt 00:00:54]} Rxe7 {[%clk 00:04:09]} {[%emt 00:02:36]} 27. Rxe7
{[%clk 00:03:39]} {[%emt 00:00:16]} fxe4 {[%clk 00:04:34]} {[%emt 00:00:05]} 28.
Rc8+ {[%clk 00:02:06]} {[%emt 00:02:03]} Bf8 {[%clk 00:03:01]} {[%emt
00:02:03]} 29. Ree8 {[%clk 00:01:13]} {[%emt 00:01:23]} Rf6 {[%clk 00:03:15]}
{[%emt 00:00:16]} 30. Bd1 {[%clk 00:00:38]} {[%emt 00:01:06]} Kg7 {[%clk
00:03:09]} {[%emt 00:00:36]} 31. Kh2 {[%clk 00:00:36]} {[%emt 00:00:31]} e3
{[%clk 00:03:16]} {[%emt 00:00:24]} 32. Rc7+ {[%clk 00:00:33]} {[%emt
00:00:34]} Kh6 {[%clk 00:02:54]} {[%emt 00:00:50]} 33. Rcc8 {[%clk 00:00:37]}
{[%emt 00:00:26]} Bd6 {[%clk 00:01:47]} {[%emt 00:01:37]} 34. Rh8+ {[%clk
00:00:33]} {[%emt 00:00:35]} Kg5 {[%clk 00:02:11]} {[%emt 00:00:06]} 35. h4+
{[%clk 00:00:32]} {[%emt 00:00:32]} Kxh4 {[%clk 00:01:27]} {[%emt 00:01:13]} 36.
g4 {[%clk 00:00:33]} {[%emt 00:00:29]} Rf2+ {[%clk 00:01:17]} {[%emt 00:00:39]}
37. Kg1 {[%clk 00:00:48]} {[%emt 00:00:16]} Kg3 {[%clk 00:01:39]} {[%emt
00:00:08]} 38. Be2 {[%clk 00:00:40]} {[%emt 00:00:38]} Bxe2 {[%clk 00:02:00]}
{[%emt 00:00:08]} 39. Rc1 {[%clk 00:01:02]} {[%emt 00:00:09]} Rg2+ {[%clk
00:02:13]} {[%emt 00:00:17]} 40. Kh1 {[%clk 00:16:26]} {[%emt 00:00:06]} Rh2+
{[%clk 00:17:34]} {[%emt 00:00:09]} 41. Kg1 {[%clk 00:16:50]} {[%emt 00:00:06]}
Bf3 {[%clk 00:17:40]} {[%emt 00:00:24]} 0-1

[Event "Estonian Women's Chess Championship 2021"]
[Site "Tallinn, Paul Keres Chess House, Estonia"]
[Date "2021.12.13"]
[Round "3.1"]
[White "Blokhin, Sofia"]
[Black "Barkasheva, Sofia"]
[Result "1-0"]
[TimeControl "90 minutes for first 40 moves and 15 min. for the rest of the game with 30 sec."]
[WhiteTitle "WCM"]
[WhiteFideId "4508190"]
[BlackFideId "4510615"]
[WhiteElo "2032"]
[BlackElo "1505"]

1. e4 {[%clk 01:30:58]} {[%emt 00:00:13]} c5 {[%clk 01:30:56]} {[%emt
00:00:04]} 2. Nc3 {[%clk 01:31:24]} {[%emt 00:00:04]} Nc6 {[%clk 01:31:22]}
{[%emt 00:00:04]} 3. g3 {[%clk 01:31:39]} {[%emt 00:00:14]} g6 {[%clk
01:31:47]} {[%emt 00:00:05]} 4. Bg2 {[%clk 01:32:01]} {[%emt 00:00:08]} Bg7
{[%clk 01:32:13]} {[%emt 00:00:05]} 5. d3 {[%clk 01:32:19]} {[%emt 00:00:11]}
d6 {[%clk 01:32:29]} {[%emt 00:00:14]} 6. Be3 {[%clk 01:32:21]} {[%emt
00:00:27]} Rb8 {[%clk 01:32:35]} {[%emt 00:00:25]} 7. f4 {[%clk 01:29:56]}
{[%emt 00:02:55]} e6 {[%clk 01:32:36]} {[%emt 00:00:29]} 8. Nf3 {[%clk
01:27:28]} {[%emt 00:02:57]} Nd4 {[%clk 01:32:38]} {[%emt 00:00:27]} 9. O-O
{[%clk 01:25:41]} {[%emt 00:02:17]} Ne7 {[%clk 01:31:16]} {[%emt 00:01:52]} 10.
Rb1 {[%clk 01:19:59]} {[%emt 00:06:12]} b6 {[%clk 01:29:22]} {[%emt 00:02:24]}
11. Ne2 {[%clk 01:14:17]} {[%emt 00:06:12]} Nec6 {[%clk 01:29:22]} {[%emt
00:00:30]} 12. c3 {[%clk 01:12:54]} {[%emt 00:01:53]} Nxf3+ {[%clk 01:26:00]}
{[%emt 00:11:22]} 13. Bxf3 {[%clk 01:12:27]} O-O {[%clk 01:08:48]} {[%emt
00:11:09]} 14. Kg2 {[%clk 01:05:57]} {[%emt 00:07:00]} d5 {[%clk 01:05:47]}
{[%emt 00:03:31]} 15. e5 {[%clk 01:00:33]} {[%emt 00:24:34]} Qe7 {[%clk
00:53:27]} 16. h4 {[%clk 00:55:03]} {[%emt 00:00:08]} Ba6 {[%clk 00:35:07]}
{[%emt 00:18:52]} 17. h5 {[%clk 00:51:59]} {[%emt 00:03:33]} d4 {[%clk
00:32:42]} {[%emt 00:44:07]} 18. Bc1 {[%clk 00:46:32]} Bb7 {[%clk 00:29:21]} 19.
c4 {[%clk 00:46:34]} Nb4 {[%clk 00:26:32]} 20. a3 {[%clk 00:46:35]} Bxf3+
{[%clk 00:26:47]} 21. Rxf3 {[%clk 00:46:52]} Nc6 {[%clk 00:26:37]} 22. Qh1
{[%clk 00:40:42]} f6 {[%clk 00:22:51]} 23. hxg6 {[%clk 00:37:24]} hxg6 {[%clk
00:22:36]} 24. exf6 {[%clk 00:37:27]} Rxf6 {[%clk 00:21:51]} 25. Bd2 {[%clk
00:33:28]} Qb7 {[%clk 00:19:14]} 26. Ng1 {[%clk 00:23:53]} {[%emt 00:08:52]}
Rbf8 {[%clk 00:18:09]} {[%emt 00:01:35]} 27. Kf2 {[%clk 00:21:32]} {[%emt
00:02:51]} e5 {[%clk 00:17:05]} {[%emt 00:01:35]} 28. Re1 {[%clk 00:19:30]}
{[%emt 00:02:32]} b5 {[%clk 00:12:53]} {[%emt 00:04:42]} 29. b3 {[%clk
00:18:43]} {[%emt 00:01:17]} bxc4 {[%clk 00:07:50]} {[%emt 00:05:34]} 30. bxc4
{[%clk 00:19:06]} {[%emt 00:00:07]} Qb2 {[%clk 00:07:30]} {[%emt 00:00:49]} 31.
Re2 {[%clk 00:19:09]} {[%emt 00:00:27]} Qb7 {[%clk 00:04:35]} {[%emt 00:03:26]}
32. Nh3 {[%clk 00:18:37]} {[%emt 00:01:02]} Bh8 {[%clk 00:03:46]} {[%emt
00:01:18]} 33. Ng5 {[%clk 00:18:28]} {[%emt 00:00:39]} Qe7 {[%clk 00:03:18]}
{[%emt 00:00:59]} 34. Kg1 {[%clk 00:17:28]} {[%emt 00:01:29]} Rf5 {[%clk
00:02:08]} {[%emt 00:01:41]} 35. Rff2 {[%clk 00:16:39]} {[%emt 00:01:19]} R5f6
{[%clk 00:01:22]} {[%emt 00:01:15]} 36. Rh2 {[%clk 00:16:35]} {[%emt 00:00:34]}
Qg7 {[%clk 00:01:36]} {[%emt 00:00:16]} 37. Rh7 {[%clk 00:15:56]} {[%emt
00:01:09]} R6f7 {[%clk 00:01:55]} {[%emt 00:00:11]} 38. Rxg7+ {[%clk 00:16:11]}
{[%emt 00:00:15]} Rxg7 {[%clk 00:02:18]} {[%emt 00:00:06]} 39. Qd5+ {[%clk
00:16:07]} {[%emt 00:00:34]} Rgf7 {[%clk 00:02:38]} {[%emt 00:00:10]} 40. Nxf7
{[%clk 00:31:28]} {[%emt 00:00:09]} Rxf7 {[%clk 00:18:05]} {[%emt 00:00:03]} 41.
Qxc6 {[%clk 00:31:45]} {[%emt 00:00:12]} Re7 {[%clk 00:17:43]} {[%emt
00:00:51]} 42. fxe5 {[%clk 00:31:59]} {[%emt 00:00:18]} Bg7 {[%clk 00:17:45]}
{[%emt 00:00:26]} 43. Qxg6 {[%clk 00:32:16]} {[%emt 00:00:15]} Rb7 {[%clk
00:17:57]} {[%emt 00:00:18]} 44. Qe6+ {[%clk 00:32:02]} {[%emt 00:00:45]} Kh7
{[%clk 00:17:50]} {[%emt 00:00:37]} 45. Rh2+ {[%clk 00:32:20]} {[%emt
00:00:12]} Bh6 {[%clk 00:18:15]} {[%emt 00:00:05]} 46. Rxh6+ {[%clk 00:32:41]}
{[%emt 00:00:10]} Kg7 {[%clk 00:18:41]} {[%emt 00:00:04]} 47. Qf6+ {[%clk
00:32:59]} {[%emt 00:00:12]} Kg8 {[%clk 00:19:07]} {[%emt 00:00:04]} 48. Rh8#
{[%clk 00:33:23]} {[%emt 00:00:06]} 1-0

[Event "Estonian Women's Chess Championship 2021"]
[Site "Tallinn, Paul Keres Chess House, Estonia"]
[Date "2021.12.13"]
[Round "3.2"]
[White "Sinitsina, Anastassia"]
[Black "Levchenko, Marina"]
[Result "1-0"]
[TimeControl "90 minutes for first 40 moves and 15 min. for the rest of the game with 30 sec."]
[WhiteTitle "WFM"]
[WhiteFideId "4504640"]
[BlackFideId "4508548"]
[WhiteElo "2159"]
[BlackElo "1367"]

1. e4 {[%clk 01:30:38]} {[%emt 00:00:22]} c5 {[%clk 01:30:47]} {[%emt
00:00:13]} 2. Nf3 {[%clk 01:30:53]} {[%emt 00:00:15]} d6 {[%clk 01:31:11]}
{[%emt 00:00:07]} 3. d4 {[%clk 01:30:45]} {[%emt 00:00:38]} cxd4 {[%clk
01:31:30]} {[%emt 00:00:11]} 4. Nxd4 {[%clk 01:31:09]} {[%emt 00:00:06]} Nf6
{[%clk 01:31:50]} {[%emt 00:00:10]} 5. f3 {[%clk 01:30:57]} {[%emt 00:00:43]}
a6 {[%clk 01:31:02]} {[%emt 00:01:18]} 6. c4 {[%clk 01:31:11]} {[%emt
00:00:16]} e6 {[%clk 01:29:11]} {[%emt 00:02:20]} 7. Nc3 {[%clk 01:30:46]}
{[%emt 00:00:55]} b6 {[%clk 01:24:59]} {[%emt 00:04:42]} 8. Be3 {[%clk
01:30:19]} {[%emt 00:00:57]} Bb7 {[%clk 01:23:57]} {[%emt 00:01:32]} 9. Be2
{[%clk 01:30:31]} {[%emt 00:00:17]} Nbd7 {[%clk 01:15:21]} {[%emt 00:09:06]} 10.
O-O {[%clk 01:29:25]} {[%emt 00:01:36]} Rc8 {[%clk 01:13:32]} {[%emt 00:02:19]}
11. Rc1 {[%clk 01:28:22]} {[%emt 00:01:32]} Be7 {[%clk 01:11:02]} {[%emt
00:03:01]} 12. Qd2 {[%clk 01:27:29]} {[%emt 00:09:04]} h6 {[%clk 01:07:14]} 13.
b3 {[%clk 01:23:17]} {[%emt 00:01:19]} Nc5 {[%clk 00:57:48]} {[%emt 00:09:57]}
14. Rfd1 {[%clk 01:21:57]} {[%emt 00:01:50]} Qc7 {[%clk 00:52:27]} {[%emt
00:05:51]} 15. Kh1 {[%clk 01:18:26]} {[%emt 00:04:01]} Rd8 {[%clk 00:48:52]}
{[%emt 00:23:17]} 16. b4 {[%clk 01:17:23]} Ncd7 {[%clk 00:46:25]} 17. Nd5
{[%clk 01:17:15]} Qb8 {[%clk 00:40:36]} 18. Nxe7 Kxe7 {[%clk 00:41:20]} 19. Qb2
{[%clk 01:14:42]} Rc8 {[%clk 00:39:00]} 20. Nb3 {[%clk 01:13:58]} {[%emt
00:00:37]} Rhd8 {[%clk 00:32:38]} {[%emt 00:06:53]} 21. Bf4 {[%clk 01:13:07]}
{[%emt 00:01:20]} e5 {[%clk 00:31:29]} {[%emt 00:01:39]} 22. Be3 {[%clk
01:13:30]} {[%emt 00:00:08]} Kf8 {[%clk 00:24:23]} {[%emt 00:07:36]} 23. Qd2
{[%clk 01:12:39]} {[%emt 00:01:21]} Ne8 {[%clk 00:22:52]} {[%emt 00:02:01]} 24.
a4 {[%clk 01:11:35]} {[%emt 00:01:34]} Kg8 {[%clk 00:22:02]} {[%emt 00:43:32]}
25. a5 {[%clk 01:11:38]} bxa5 {[%clk 00:21:11]} 26. Nxa5 {[%clk 01:11:51]} Nf8
{[%clk 00:19:43]} 27. Bb6 {[%clk 01:10:48]} Rd7 {[%clk 00:19:56]} 28. Qe3
{[%clk 01:09:50]} Nf6 {[%clk 00:17:50]} 29. Rb1 {[%clk 01:06:15]} Qa8 {[%clk
00:16:48]} 30. Qf2 {[%clk 01:05:10]} Ne6 {[%clk 00:15:15]} 31. Be3 {[%clk
01:05:20]} Re8 {[%clk 00:13:35]} 32. Rb2 {[%clk 01:01:39]} Rdd8 {[%clk
00:10:11]} 33. Qh4 {[%clk 01:00:49]} Nh7 {[%clk 00:08:07]} 34. Rdd2 {[%clk
01:00:11]} Nhf8 {[%clk 00:07:09]} 35. Bd1 {[%clk 01:00:08]} Ng6 {[%clk
00:05:26]} 36. Qf2 {[%clk 01:00:21]} Nc7 {[%clk 00:04:02]} 37. Ba4 {[%clk
00:57:23]} {[%emt 00:02:30]} Re7 {[%clk 00:04:02]} {[%emt 00:00:29]} 38. Rd1
{[%clk 00:57:15]} {[%emt 00:00:38]} Re6 {[%clk 00:03:10]} {[%emt 00:01:22]} 39.
Bb6 {[%clk 01:12:07]} {[%emt 00:00:38]} Qc8 {[%clk 00:17:12]} {[%emt 00:01:28]}
40. Rbd2 {[%clk 01:11:51]} {[%emt 00:00:45]} Ne7 {[%clk 00:14:17]} {[%emt
00:03:25]} 41. Qe3 {[%clk 01:09:36]} {[%emt 00:02:46]} Qb8 {[%clk 00:11:51]}
{[%emt 00:02:56]} 42. Qc3 {[%clk 01:06:05]} {[%emt 00:04:01]} Nc8 {[%clk
00:11:25]} {[%emt 00:00:56]} 43. Bf2 {[%clk 01:06:21]} {[%emt 00:00:13]} Ba8
{[%clk 00:10:43]} {[%emt 00:01:12]} 44. Bh4 {[%clk 01:06:17]} {[%emt 00:00:35]}
g5 {[%clk 00:10:46]} {[%emt 00:00:27]} 45. Bf2 {[%clk 01:06:39]} {[%emt
00:00:08]} Kg7 {[%clk 00:10:37]} {[%emt 00:00:39]} 46. Bc6 {[%clk 01:05:31]}
{[%emt 00:01:39]} Rf6 {[%clk 00:10:02]} {[%emt 00:01:05]} 47. Bg3 {[%clk
01:04:57]} {[%emt 00:01:04]} Rf8 {[%clk 00:08:55]} {[%emt 00:01:36]} 48. Rxd6
{[%clk 01:02:56]} {[%emt 00:02:32]} Rxd6 {[%clk 00:06:08]} {[%emt 00:03:16]} 49.
Bxe5+ {[%clk 01:03:18]} {[%emt 00:00:08]} Kh7 {[%clk 00:04:53]} {[%emt
00:01:45]} 50. Rxd6 {[%clk 01:02:22]} {[%emt 00:01:26]} Nxd6 {[%clk 00:04:53]}
{[%emt 00:00:30]} 51. Bxd6 {[%clk 01:02:41]} {[%emt 00:00:12]} Rd8 {[%clk
00:04:29]} {[%emt 00:00:53]} 52. Qf6 {[%clk 01:02:41]} {[%emt 00:00:30]} Kg8
{[%clk 00:04:04]} {[%emt 00:00:54]} 53. h4 {[%clk 01:00:49]} {[%emt 00:02:22]}
Ne8 {[%clk 00:01:32]} {[%emt 00:03:02]} 54. Bxe8 {[%clk 01:00:54]} {[%emt
00:00:26]} Qxd6 {[%clk 00:00:45]} {[%emt 00:01:17]} 55. Bxf7+ {[%clk 01:01:19]}
{[%emt 00:00:05]} Kf8 {[%clk 00:01:02]} {[%emt 00:00:12]} 56. Be6+ {[%clk
01:01:45]} {[%emt 00:00:04]} 1-0